Cogmind - Beta 10.2 @@@ ROGUE MODE // 2021.01.15 @ 03:02:14 Player: WayneKnight Result: Self-destructed Performance ------------- Evolutions (4) 2000 Regions Visited (8) 1600 Robots Destroyed (90) 450 Value Destroyed (3068) 3068 Prototype IDs (26) 520 Alien Tech Used (0) 0 Bonus (452) 452 TOTAL SCORE: 8090 Bonus ------- High Alert Combat Kills 102 Follower Combat Kills 67 Aligned with FarCom 300 Friendly Fire -17 Cogmind --------- Core Integrity 850/850 Matter 70/300 Energy 281/310 System Corruption 17% Temperature Cool (0) Movement Hovering (48) Location -6/Waste Parts ------- > --- POWER (1) -------- Fission Core > --- PROPULSION (5) --- Aerolev Unit Gravmag System Gravmag System > --- UTILITY (7) ------ Experimental Sensor Array Advanced Signal Interpreter Hacking Suite System Shield System Backup Module > --- WEAPON (2) ------- Katana > --- INVENTORY (4) ---- Armored Huge Wheel AWS/Gauss Peak State ------------ > --- POWER ------------ Fission Core > --- PROPULSION ------- Aerolev Unit Gravmag System Gravmag System Gravmag System Gravmag System > --- UTILITY ---------- Large Storage Unit Large Storage Unit Experimental Sensor Array Advanced Signal Interpreter Hacking Suite System Shield System Shield > --- WEAPON ----------- Guided Plasma Cannon Katana > --- INVENTORY -------- Light Nuclear Core Light Nuclear Core Armored Huge Wheel Gravmag System High-capacity Storage Unit Advanced Weight Redist. System Advanced Sensor Array Advanced Signal Interpreter Hacking Suite System Backup Module AWS/Gauss Proton Missile Launcher Power Maul Chainsword [Rating: 62] Favorites ----------- Power Ion Engine Engine Ion Engine Power Core Light Nuclear Core Propulsion Light Treads Treads Light Treads Leg Aluminum Leg Wheel Armored Huge Wheel Hover Unit Gravmag System Utility High-capacity Storage Unit Device Experimental Sensor Array Storage High-capacity Storage Unit Processor Advanced Signal Interpreter Hackware Hacking Suite Protection Light Armor Plating Weapon Gauss Rifle Energy Gun EM Pulse Gun Energy Cannon Guided Plasma Cannon Ballistic Gun Gauss Rifle Ballistic Cannon Flak Cannon Launcher Rocket Launcher Impact Weapon Power Maul Slashing Weapon Katana Build | -11 -10 -10 -10 -9 -8 -7 -6 -6 ------- Run | Scr Mat Min Exi Min Mat Fac Fac Was Slots Evolved 8 | . . . . . 4 2 2 . Power . | . . . . . . . . . Propulsion 3 | . . . . . 1 1 1 . Utility 5 | . . . . . 3 1 1 . Weapon . | . . . . . . . . . Parts Attached 147 | 1 10 1 2 . 22 102 8 1 Power 7 | . 1 . . . 2 3 1 . Engine 4 | . 1 . . . 2 1 . . Core 3 | . . . . . . 2 1 . Reactor . | . . . . . . . . . Propulsion 26 | . 3 . . . 7 13 3 . Treads 15 | . 3 . . . 6 6 . . Leg 1 | . . . . . 1 . . . Wheel 5 | . . . . . . 5 . . Hover 5 | . . . . . . 2 3 . Flight . | . . . . . . . . . Utility 78 | 1 2 . 2 . 7 62 3 1 Device 42 | . . . . . . 41 . 1 Storage 9 | 1 2 . 2 . 1 2 1 . Processor 2 | . . . . . . 2 . . Hackware 3 | . . . . . 1 . 2 . Protection 22 | . . . . . 5 17 . . Artifact . | . . . . . . . . . Weapon 36 | . 4 1 . . 6 24 1 . Energy Gun 3 | . 3 . . . . . . . Energy Cannon 4 | . . . . . . 4 . . Ballistic Gun 15 | . . 1 . . 6 8 . . Ballistic Cannon 1 | . . . . . . 1 . . Launcher 3 | . 1 . . . . 2 . . Special Weapon . | . . . . . . . . . Impact Weapon 2 | . . . . . . 2 . . Slashing Weapon 8 | . . . . . . 7 1 . Piercing Weapon . | . . . . . . . . . Special Melee Weapon . | . . . . . . . . . Unidentified Prototypes 2 | . . . . . 1 . 1 . Parts Lost 16 | . 1 1 . . 2 9 . 3 Power 5 | . . . . . 1 4 . . Propulsion 7 | . . . . . 1 4 . 2 Utility 1 | . . . . . . 1 . . Weapon 3 | . 1 1 . . . . . 1 Highest Loss Streak 3 | . 1 1 . . 2 3 . 3 Average Slot Usage (%) 91 | . 100 99 100 100 99 85 83 100 Engine 7 | . 14 14 14 14 9 4 . . Core 1 | . . . . . . 1 6 6 Treads 14 | . 27 28 28 28 24 6 . . Wheel 5 | . . . . . . 10 3 . Hover 2 | . . . . . . 3 23 33 Device 3 | . . . . . . 6 6 10 Storage 24 | . 28 28 28 28 27 23 17 13 Processor 4 | . . . . . . 6 6 6 Hackware 5 | . . . . . 4 7 10 16 Protection 3 | . . . . . 13 . . . Energy Gun 3 | . 16 19 14 14 . . . . Ballistic Gun 9 | . 10 8 14 14 17 6 . . Slashing Weapon 2 | . . . . . . 4 1 6 Naked Turns . | . . . . . . . . . Heaviest Build 111 | 16 41 41 72 72 99 111 96 56 Greatest Support 82 | 20 40 40 40 40 62 82 55 55 Greatest Overweight (x) 9 | . 1 1 1 1 9 3 3 1 Average Overweight (x) 1 | . . . . 1 1 2 1 . Largest Inventory Capacity 32 | 8 16 16 20 20 26 32 26 16 Average Capacity 23 | 6 9 16 18 20 25 26 22 16 Most Carried 26 | 6 14 13 18 18 26 26 26 16 Average Carried 21 | 6 8 12 15 18 23 25 21 15 Final Capacity 26 | 8 16 16 20 20 26 26 16 4 Final Carried 26 | 6 12 13 18 18 26 25 16 4 Class Distribution -------------------- 80% | Hauler-Mutant 18% | Mutant Dominant Class ---------------- Mutant | -10/Materials Mutant | -10/Mines Hauler-Mutant | -10/Exiles Hauler-Mutant | -9/Mines Hauler-Mutant | -8/Materials Hauler-Mutant | -7/Factory Hacker-Mutant | -6/Factory Scavenger-Mutant | -6/Waste Resources | -11 -10 -10 -10 -9 -8 -7 -6 -6 ----------- Run | Scr Mat Min Exi Min Mat Fac Fac Was Matter Collected 2517 | 200 145 30 . 20 638 1484 . . Remotely . | . . . . . . . . . Salvage Created 3384 | 66 339 194 . . 1058 1727 . . Parts 201 | 3 24 5 . . 75 94 . . Haulers Intercepted 1 | . . . . . 1 . . . Recyclers Shooed 2 | . . . . . 1 1 . . Parts Field Recycled . | . . . . . . . . . Retrieved Matter . | . . . . . . . . . Parts Self-Destructed . | . . . . . . . . . Prevented . | . . . . . . . . . Kills | -11 -10 -10 -10 -9 -8 -7 -6 -6 ------- Run | Scr Mat Min Exi Min Mat Fac Fac Was Combat Hostiles Destroyed 66 | . 12 4 . . 20 30 . . Melee 8 | . . . . . . 8 . . Guns 51 | . 9 2 . . 20 20 . . Cannons 1 | . . . . . . 1 . . AOE 6 | . 3 2 . . . 1 . . Classes Destroyed 13 | 1 5 . . . 3 4 . . Worker 4 | . 1 . . . 2 1 . . Builder 3 | . . . . . . 3 . . Hauler 1 | . . . . . 1 . . . Recycler 3 | 1 . . . . 1 1 . . Operator 4 | . 1 . . . 3 . . . Watcher 9 | . 1 . . . 3 5 . . Swarmer 14 | . 6 . . . 8 . . . Grunt 25 | . 6 4 . . 2 13 . . Brawler 1 | . . . . . . 1 . . Duelist 1 | . . . . . . 1 . . Sentry 12 | . . . . . 8 4 . . Hunter 2 | . . . . . 2 . . . Programmer 11 | . . . . . . 11 . . Best Kill Streak 6 | 1 3 2 . . 6 4 . . Combat Bots Only 6 | . 3 2 . . 6 4 . . Max Kills in Single Turn 2 | 1 2 2 . . 2 2 . . Gunslinging 1 | . . . . . 1 1 . . Exploded 2 | . 2 2 . . . 1 . . Melee 1 | . . . . . . 1 . . Uniques/NPCs Destroyed . | . . . . . . . . . Combat | -11 -10 -10 -10 -9 -8 -7 -6 -6 -------- Run | Scr Mat Min Exi Min Mat Fac Fac Was Damage Taken 4580 | . 308 164 . 10 1083 2980 . 35 Core 593 | . 88 21 . 10 110 364 . . Absorbed by Shields . | . . . . . . . . . Core Remaining (%) 70 | 100 . . . 52 80 48 . . Volleys Fired 188 | 2 30 13 . . 80 63 . . Largest 2 | 2 2 2 . . 2 2 . . Hottest 120 | 70 70 80 . . 56 120 . . Shots Fired 404 | 4 56 24 . . 160 160 . . Gun 380 | 4 53 24 . . 160 139 . . Cannon 16 | . . . . . . 16 . . Launcher 8 | . 3 . . . . 5 . . Special . | . . . . . . . . . Kinetic 337 | 2 27 . . . 160 148 . . Thermal 35 | 2 26 . . . . 7 . . Explosive 8 | . 3 . . . . 5 . . Electromagnetic 24 | . . 24 . . . . . . Robot Hit Streak 14 | 4 8 5 . . 11 14 . . Robot Miss Streak 5 | . 5 2 . . 4 5 . . Penetration Max 1 | . . . . . 1 1 . . Secondary Targets 5 | . 2 1 . . 1 1 . . Max Gunslinging Chain 1 | . 1 1 . . 1 1 . . Autonomous 43 | . . . . . . 43 . . Shots Hit Robots 315 | 4 29 16 . . 97 169 . . Core Hits 148 | 2 24 8 . . 44 70 . . Critical Hits 7 | . . . . . 1 6 . . Critical Kills 3 | . . . . . . 3 . . Critical Parts Destroyed 3 | . . . . . 1 2 . . Melee Attacks 94 | . . . . . . 94 . . Impact 8 | . . . . . . 8 . . Slashing 86 | . . . . . . 86 . . Piercing . | . . . . . . . . . Sneak Attacks 3 | . . . . . . 3 . . Combat Hostiles . | . . . . . . . . . Follow-up Attacks 4 | . . . . . . 4 . . Damage Inflicted 7898 | 40 560 285 . . 1617 5396 . . Guns 4899 | 40 314 197 . . 1571 2777 . . Cannons 101 | . . . . . . 101 . . Explosions 705 | . 244 71 . . . 390 . . Melee 2128 | . . . . . . 2128 . . Ramming 65 | . 2 17 . . 46 . . . Kinetic 4557 | 15 93 . . . 1571 2878 . . Thermal 317 | 25 221 71 . . . . . . Explosive 578 | . 244 . . . . 334 . . Electromagnetic 253 | . . 197 . . . 56 . . Impact 347 | . . . . . . 347 . . Slashing 1781 | . . . . . . 1781 . . Piercing . | . . . . . . . . . Highest Corruption 17 | . 1 1 1 1 3 8 . 17 Average Corruption 2 | . 1 1 1 1 2 3 . 11 Corruption Purged 8 | . . . . . . 7 . 1 Effects 143 | . 5 1 4 1 8 120 . 4 Message Errors 39 | . 3 . 1 . 3 32 . . Matter Fused 22 | . . . . . . 21 . 1 Heat Flow Errors 31 | . . . . . 3 27 . 1 Energy Discharges 28 | . . . 3 1 . 22 . 2 Data Loss (minor) 13 | . 1 1 . . 1 10 . . Data Loss (major) 1 | . . . . . . 1 . . Misfires 2 | . . . . . . 2 . . Targeting Errors 7 | . 1 . . . 1 5 . . Overload Shots . | . . . . . . . . . Overflow Damage 118 | . 9 . . . . 109 . . Projectiles . | . . . . . . . . . Explosions 9 | . 9 . . . . . . . Melee 109 | . . . . . . 109 . . Knockbacks 5 | . . . . . . 5 . . Impact . | . . . . . . . . . Kinetic 5 | . . . . . . 5 . . Secondary . | . . . . . . . . . Self-Inflicted Damage 33 | . . . . . . 33 . . Shots 1 | . . . . . . 1 . . Rammed 10 | . 2 3 . . 5 . . . Targets Rammed 11 | . 2 3 . . 6 . . . Kicked . | . . . . . . . . . Crushed 1 | . . . . . 1 . . . Highest Temperature 268 | 40 142 219 . . 211 268 . 257 Average Temperature 64 | 20 43 100 . . 24 82 . 149 Received Heat Transfer 1053 | . 81 93 . 6 189 684 . . Siege Activations . | . . . . . . . . . Robots Corrupted . | . . . . . . . . . Combat Hostiles . | . . . . . . . . . Parts Fried 2 | . . . . . . 2 . . Impact Corruptions 3 | . . . . . . 3 . . Robots Melted . | . . . . . . . . . Combat Hostiles . | . . . . . . . . . Parts Melted . | . . . . . . . . . Heat Transferred 840 | 74 666 100 . . . . . . Parts Sabotaged . | . . . . . . . . . Parts Stolen . | . . . . . . . . . Parts Stripped . | . . . . . . . . . Power Chain Reactions 1 | . . 1 . . . . . . Missiles Intercepted . | . . . . . . . . . Alert | -11 -10 -10 -10 -9 -8 -7 -6 -6 ------- Run | Scr Mat Min Exi Min Mat Fac Fac Was Peak Influence 814 | 5 115 113 . 56 257 814 398 154 Initial 398 | . 3 8 . . 21 105 398 139 Average 206 | 4 47 67 . 49 115 281 398 152 Maximum Alert Level 3 | . . . . . 1 3 1 . Low Security (%) 69 | 100 100 100 . 100 84 55 . 100 Level 1 15 | . . . . . 15 19 100 . Level 2 7 | . . . . . . 12 . . Level 3 7 | . . . . . . 12 . . Level 4 . | . . . . . . . . . Level 5 . | . . . . . . . . . High Security . | . . . . . . . . . Max Security . | . . . . . . . . . Squads Dispatched 23 | . 4 . . . 1 18 . . Investigation 4 | . 1 . . . . 3 . . Extermination 9 | . . . . . . 9 . . Reinforcement 9 | . 3 . . . 1 5 . . Assault 1 | . . . . . . 1 . . Garrison . | . . . . . . . . . Intercept . | . . . . . . . . . Construction Impeded 2 | . . . . . . 2 . . Haulers Reinforced 3 | . . . . . . 3 . . Stealth | -11 -10 -10 -10 -9 -8 -7 -6 -6 --------- Run | Scr Mat Min Exi Min Mat Fac Fac Was Distress Signals 7 | . 1 . . . 4 2 . . Communications Jammed . | . . . . . . . . . Distress Signals . | . . . . . . . . . Times Spotted 140 | . 24 3 . 2 44 65 . 2 Peak Tracking Total 6 | . 4 2 . 2 5 6 . 2 Tactical Retreats 6 | . 1 1 . . 1 3 . . Traps | -11 -10 -10 -10 -9 -8 -7 -6 -6 ------- Run | Scr Mat Min Exi Min Mat Fac Fac Was Traps Triggered 22 | . 5 . . . 3 13 1 . Indirectly . | . . . . . . . . . Trap Hack Attempts . | . . . . . . . . . Triggered . | . . . . . . . . . Disarmed . | . . . . . . . . . Reprogrammed . | . . . . . . . . . Reused . | . . . . . . . . . Traps Extracted . | . . . . . . . . . Installed . | . . . . . . . . . Triggered . | . . . . . . . . . Machines | -11 -10 -10 -10 -9 -8 -7 -6 -6 ---------- Run | Scr Mat Min Exi Min Mat Fac Fac Was Machines Disabled 6 | . . . . . . 6 . . Max in Single Turn 4 | . . . . . . 4 . . Garrison Access 3 | . . . . . . 3 . . Machines Sabotaged . | . . . . . . . . . Garrisons Compromised . | . . . . . . . . . Overloaded Fab Kills . | . . . . . . . . . Fab Network Shutdowns . | . . . . . . . . . Hacking | -11 -10 -10 -10 -9 -8 -7 -6 -6 --------- Run | Scr Mat Min Exi Min Mat Fac Fac Was Machines Accessed 46 | . 7 1 2 . 13 23 . . Terminals 28 | . 5 1 . . 9 13 . . Fabricators . | . . . . . . . . . Repair Stations 5 | . . . . . 2 3 . . Recycling Units 6 | . 2 . . . . 4 . . Scanalyzers 2 | . . . . . 2 . . . Garrison Access 3 | . . . . . . 3 . . Total Hacks 135 | . 18 2 2 . 50 63 . . Successful 76 | . 8 1 2 . 31 34 . . Failed 58 | . 9 1 . . 19 29 . . Catastrophic 1 | . . . . . . 1 . . Database Lockouts 1 | . 1 . . . . . . . Manual 79 | . 13 1 1 . 34 30 . . Terminals 90 | . 16 2 . . 34 38 . . Fabricators . | . . . . . . . . . Repair Stations 21 | . . . . . 9 12 . . Recycling Units 9 | . 2 . . . . 7 . . Scanalyzers 7 | . . . . . 7 . . . Garrison Access 6 | . . . . . . 6 . . Terminal Hacks 19 | . 2 . 2 . 10 5 . . Record 1 | . . . 1 . . . . . Part Schematic 3 | . . . . . 2 1 . . Robot Analysis 6 | . 1 . . . 5 . . . Branch Access Points 1 | . . . . . 1 . . . Terminal Index 1 | . . . . . . 1 . . Alert Level 2 | . . . . . 1 1 . . Unreport Threat 1 | . . . . . 1 . . . Locate Traps 1 | . . . . . . 1 . . Recall Reinforcements 1 | . 1 . . . . . . . Hauler Manifests 1 | . . . . . . 1 . . EX-Prototype ID Bank 1 | . . . 1 . . . . . Fabricator Hacks . | . . . . . . . . . Repair Station Hacks 17 | . . . . . 7 10 . . Scan Component 9 | . . . . . 4 5 . . Repair 7 | . . . . . 3 4 . . Refit 1 | . . . . . . 1 . . Recycling Unit Hacks 3 | . 2 . . . . 1 . . Report Inventory 3 | . 2 . . . . 1 . . Scanalyzer 6 | . . . . . 6 . . . Insert Component 3 | . . . . . 3 . . . Analyze 3 | . . . . . 3 . . . Garrison Access Hacks 3 | . . . . . . 3 . . Seal Access 3 | . . . . . . 3 . . Unauthorized Hacks 28 | . 4 1 . . 8 15 . . Terminals 27 | . 4 1 . . 8 14 . . Track 9 | . . 1 . . 1 7 . . Assimilate 2 | . . . . . 2 . . . Botnet 16 | . 4 . . . 5 7 . . Fabricators . | . . . . . . . . . Repair Stations . | . . . . . . . . . Recycling Units 1 | . . . . . . 1 . . Recyclers 1 | . . . . . . 1 . . Scanalyzers . | . . . . . . . . . Garrison Access . | . . . . . . . . . Data Cores Recovered 2 | . . . . . 2 . . . Used . | . . . . . . . . . Hacking Detections 38 | . 4 1 . . 12 21 . . Full Trace Events 2 | . 1 . . . . 1 . . Feedback Events . | . . . . . . . . . Feedback Blocked . | . . . . . . . . . Robot Schematics Acquired . | . . . . . . . . . Robots Built . | . . . . . . . . . Matter . | . . . . . . . . . Time . | . . . . . . . . . Total Robot Build Rating . | . . . . . . . . . Part Schematics Acquired 5 | . . . . . 4 1 . . Parts Built . | . . . . . . . . . Matter . | . . . . . . . . . Time . | . . . . . . . . . Total Part Build Rating . | . . . . . . . . . Parts Repaired 7 | . . . . . 3 4 . . Time 265 | . . . . . 78 187 . . Parts Recycled . | . . . . . . . . . Recycled Matter . | . . . . . . . . . Retrieved Matter . | . . . . . . . . . Retrieved Components . | . . . . . . . . . Parts Scanalyzed 3 | . . . . . 3 . . . Part Schematics Acquired 2 | . . . . . 2 . . . Parts Damaged . | . . . . . . . . . Bothacking | -11 -10 -10 -10 -9 -8 -7 -6 -6 ------------ Run | Scr Mat Min Exi Min Mat Fac Fac Was Used RIF Installer . | . . . . . . . . . Robots Hacked . | . . . . . . . . . Non-combat . | . . . . . . . . . Combat . | . . . . . . . . . Robot Hacks Applied . | . . . . . . . . . Relay Couplers Released 3 | . . . . . . 3 . . Programmers 3 | . . . . . . 3 . . Robots Rewired . | . . . . . . . . . Allies Hacked . | . . . . . . . . . Hacks Repelled . | . . . . . . . . . Allies | -11 -10 -10 -10 -9 -8 -7 -6 -6 -------- Run | Scr Mat Min Exi Min Mat Fac Fac Was Total Allies 3 | . . 3 . . . . . . Largest Group 3 | . . 3 3 3 2 . . . Highest-Rated Group 40 | . . 40 40 40 32 . . . Highest-Rated Ally 16 | . . 16 16 16 16 . . . Total Orders . | . . . . . . . . . Ally Attacks 18 | . . . . 11 7 . . . Total Damage 190 | . . . . 144 46 . . . Kills 3 | . . . . 2 1 . . . Allies Corrupted . | . . . . . . . . . Allies Melted . | . . . . . . . . . Intel | -11 -10 -10 -10 -9 -8 -7 -6 -6 ------- Run | Scr Mat Min Exi Min Mat Fac Fac Was Robot Analysis Total 6 | . 1 . . . 5 . . . Derelict Logs Recovered 2 | . . 1 . 1 . . . . Drone Launches . | . . . . . . . . . Drone Recoveries . | . . . . . . . . . Exploration | -11 -10 -10 -10 -9 -8 -7 -6 -6 ------------- Run | Scr Mat Min Exi Min Mat Fac Fac Was Turns Passed 14034 | 20 1811 523 619 63 2667 8094 94 143 Spaces Moved 6591 | 11 729 288 349 32 1047 3864 98 173 Core . | . . . . . . . . . Treads 2916 | . 684 288 349 32 1034 529 . . Legs 69 | 11 45 . . . 13 . . . Wheels 3367 | . . . . . . 3335 32 . Hover 239 | . . . . . . . 66 173 Flight . | . . . . . . . . . Fastest Speed 42 | 120 120 160 160 180 175 110 42 42 Average Speed 144 | 120 163 166 175 180 189 129 75 58 Slowest Speed 390 | 120 180 180 180 180 390 220 130 102 Overloaded Moves . | . . . . . . . . . Propulsion Burnouts . | . . . . . . . . . Robots Hopped . | . . . . . . . . . Cave-ins Triggered . | . . . . . . . . . Exploration Rate (%) 52 | 2 98 61 70 10 95 68 4 62 Regions Visited 8 Branch Regions 3 Pre-discovered Areas 1 | . . . 1 . . . . . Known Exits Taken 1 | . . . . . . 1 . . Unknown Exits Taken 6 | 1 1 1 1 1 1 . . . Scrap Searched 1 | . . 1 . . . . . . Spaces Dug 26 | . . . . . . 26 . . Terrain Destroyed 86 | . 11 4 . . 2 69 . . Melee 19 | . . . . . . 19 . . Projectile 33 | . . . . . 2 31 . . AOE 34 | . 11 4 . . . 19 . . Terrain Rammed . | . . . . . . . . . Walls Destroyed . | . . . . . . . . . Machines Disabled . | . . . . . . . . . Actions | -11 -10 -10 -10 -9 -8 -7 -6 -6 --------- Run | Scr Mat Min Exi Min Mat Fac Fac Was Total 10616 | 13 1296 307 356 38 1585 6686 121 214 Wait 3429 | . 514 1 . 7 393 2470 4 40 Move 6584 | 10 728 287 348 31 1046 3863 98 173 Hop . | . . . . . . . . . Pick Up 59 | . 8 2 4 . 20 24 1 . Fast Attach 24 | 1 2 . . . 8 10 3 . Attach 34 | . 1 1 . . 5 24 3 . Detach 19 | . . . . . 1 17 1 . Swap 89 | . 7 . 2 . 9 68 2 1 Drop 60 | . 4 . 2 . 17 28 9 . Fire 188 | 2 30 13 . . 80 63 . . Melee 89 | . . . . . . 89 . . Ram . | . . . . . . . . . Kick . | . . . . . . . . . Crush 11 | . 2 3 . . 6 . . . Escape Stasis 30 | . . . . . . 30 . . Rewire . | . . . . . . . . . Trap . | . . . . . . . . . Miscellaneous . | . . . . . . . . . Route ------- -11/Scrapyard -10/Materials (discovered 5 exits: [*Mat x3] / *Min x2) -10/Mines (discovered 2 exits: [*Mat] / *Exi) -10/Exiles -9/Mines -8/Materials (discovered 3 exits: *Fac x3) -7/Factory (discovered 3 exits: *Fac x3) -6/Factory -6/Waste History --------- Turn | Location | Event 7 | -11/Scrapyard | Discovered new exit (range 3) 21 | -11/Scrapyard | Entered Materials 251 | -10/Materials | Discovered new exit (range 5) 309 | -10/Materials | Build established: Mutant 1014 | -10/Materials | Discovered new exit (range 8) 1241 | -10/Materials | Discovered new exit (range 16) 1356 | -10/Materials | Discovered new exit (range 15) 1745 | -10/Materials | Discovered new exit (range 6) 1781 | -10/Materials | Central database locked down 1832 | -10/Materials | Entered Mines 1947 | -10/Mines | Learned Materials garrison access intel 1952 | -10/Mines | Discovered new exit (range 6) 2174 | -10/Mines | Assisted by bots powering up and referring to "LRC-V3" 2281 | -10/Mines | Found a damaged Exp. Sensor Array with a note attached 2284 | -10/Mines | Found Prototype Device 2336 | -10/Mines | Deemed a non-threat by the Exiles lab entrance 2347 | -10/Mines | Discovered new exit (range 5) 2355 | -10/Mines | Entered Exiles 2355 | -10/Exiles | Accompanied by 3 allies 2394 | -10/Exiles | Met 8R-AWN 2419 | -10/Exiles | Met EX-HEX 2519 | -10/Exiles | Met EX-DEC 2557 | -10/Exiles | Learned location of Zion (-6) 2711 | -10/Exiles | Met EX-BIN 2736 | -10/Exiles | Aligned with FarCom system 2738 | -10/Exiles | Given EX-Vault access code 2779 | -10/Exiles | Opened EX-Vault 2792 | -10/Exiles | Found AWS/Gauss 2800 | -10/Exiles | Found Gui. Plasma Cannon 2837 | -10/Exiles | Warned to stay clear of 0b10 Research branches 2902 | -10/Exiles | Build established: Hauler-Mutant 2950 | -10/Exiles | Discovered new exit (range 12) 2974 | -10/Exiles | Stole two prototypes: AWS/Gauss, Gui. Plasma Cannon 2974 | -10/Exiles | Entered Mines 2974 | -9/Mines | Accompanied by 3 allies 3012 | -9/Mines | Discovered new exit (range 7) 3014 | -9/Mines | Learned Materials emergency access door positions 3037 | -9/Mines | Entered Materials 3037 | -8/Materials | Accompanied by 2 allies 3037 | -8/Materials | Evolved 4 slots: Propulsion x1, Utility x3 3118 | -8/Materials | Repaired Lgt. Treads 4376 | -8/Materials | Repaired Lgt. Treads 4403 | -8/Materials | Repaired Lgt. Armor Plating 4565 | -8/Materials | Discovered new exit (range 9) 4816 | -8/Materials | Identified Exp. Sensor Array 4884 | -8/Materials | Discovered new exit (range 11) 5589 | -8/Materials | Discovered new exit (range 6) 5704 | -8/Materials | Entered Factory 5704 | -7/Factory | Evolved 2 slots: Propulsion x1, Utility x1 5706 | -7/Factory | FarCom data flow suspended 5994 | -7/Factory | Discovered new exit (range 16) 6033 | -7/Factory | Identified exit to Factory 6620 | -7/Factory | Lost 3 parts (1p2n) 7351 | -7/Factory | Discovered exit to Factory (range 8) 10458 | -7/Factory | Discovered exit to Factory (range 9) 10995 | -7/Factory | Repaired Katana 12879 | -7/Factory | Repaired Gravmag System? 13153 | -7/Factory | Repaired Exp. Sensor Array 13233 | -7/Factory | Repaired Gravmag System? 13704 | -7/Factory | First assault squad dispatched 13794 | -7/Factory | Core integrity fell below 50% 13798 | -7/Factory | Entered another Factory area 13798 | -6/Factory | Evolved 2 slots: Propulsion x1, Utility x1 13892 | -6/Factory | Sucked down chute 13892 | -6/Factory | Entered Waste 13902 | -6/Waste | Spotted C-40 Crusher 13907 | -6/Waste | EMP discharged 13907 | -6/Waste | System corruption reached 10% 13924 | -6/Waste | Spotted C-40 Crusher 14007 | -6/Waste | EMP discharged 14027 | -6/Waste | Spotted C-40 Crusher 14029 | -6/Waste | Spotted C-40 Crusher 14035 | -6/Waste | Crushed by Compactor (1 part destroyed, 2 dropped) 14035 | -6/Waste | Self-destructed Last Messages --------------- 13886_ K-01 Serf pushes Y-54 Guardian. 13889_ K-01 Serf releases Y-54 Guardian into floor hatch. 13892_ Triggered Chute Trap. 13892_ A hatch slides open and sucks a vortex of air into the floor. LOCATION=UNKNOWN GOAL=ESCAPE 13897_ ALERT: Foreign system detected. Charging EMP. 13907_ System corrupted (+10). 13926_ System corrupted: Heat flow error (+271). 13957_ Discarded System Shield. 13965_ System corrupted: Energy discharge (-83). 13991_ Arm. Leg crushed. 13992_ System corrupted: Matter fused (-5). 13994_ System Backup Module purges 1% of system corruption (9%). 13997_ ALERT: Foreign system detected. Charging EMP. 14007_ System corrupted (+8). 14030_ System corrupted: Energy discharge (-74). 14035_ Gui. Plasma Cannon crushed. 14035_ Lrg. Storage Unit crushed. 14035_ Gravmag System destroyed. Map ----- +----------------------------------------------------+ | ??????????????????????????????????????? | | ??????????????????????????????????????? | | ??????????????????????????????????????? | | ??????????????????????????????????????? | | ??????????????????????????????????????? | | ??????????????????????????????????????? | | ???????????????????????????? ??????? | | ???????????????????????????# ??????? | | ?????????????????????????### ??????? | | ?????????????????????????# #?????? | | ?????????????????????????# #?????? | | ?????????????????????????? #?????? | | ??????????????????????????? #?????? | | ???????????????????????????#CC #?????? | | ???????????????????????????#CC #?????? | | ???????????????????????????# * #?????? | | ???????????????????????????# #?????? | | ?????????????????????????### ####### | | ?????????????????????????# | | ?????????????????????????# [ | | ?????????????????????????# | | ?????????????????????????# | | ?????????????????????????### ####### | | ?????????????############??# #?????? | | ?????????????#*CC #??# #?????? | | ?????????????#@CC/ #??# #?????? | | ?????????????#!=! #### #?????? | | ?????????????#!! CC #?????? | | ?????????????#] CC #?????? | | ?????????????# #?????? | | ?????????????# #?????? | | ?????????????# #### #?????? | | ?????????????# #??# CC#?????? | | ?????????????# [ #??# CC#?????? | | ?????????????############??# #?????? | | ???????????????????????????# #?????? | | ??????????????????????????? ?????? | | ??????????????????????????? ????? | | ?????????????????????????? #???? | | ?????????????????????????? #???? | | ?????????????????????????# #???? | | ?????????????????????????# #???? | | ?????????????????????????# #???? | | ?????????????????????????? ????? | | ????????????????????????????#####?????? | | ??????????????????????????????????????? | | ??????????????????????????????????????? | | ??????????????????????????????????????? | | ??????????????????????????????????????? | | ??????????????????????????????????????? | +----------------------------------------------------+ Best States ------------- Heat Dissipation 37 Energy Generation 18 Energy Capacity 310 Matter Stores 300 Matter Capacity 300 Sight Range 16 Robot Scan Range 30 Terrain Scan Density 10 Armor Coverage 300 Evasion (%) 56 Recoil Reduction 4 Offensive Hacking 10 Defensive Hacking 20 Item Schematics ----------------- Adv. Signal Interpreter | -8/Materials | Hacked Exp. Sensor Array | -8/Materials | Scanalyzed Hacking Suite | -8/Materials | Scanalyzed Katana | -8/Materials | Hacked Greatsword | -7/Factory | Hacked Robot Schematics ------------------ None Fabricated ------------ Nothing Alien Tech Used ----------------- None Achievements -------------- None Challenges ------------ None Game ------ Seed GhostLightpackCycler Manual? 0 Play Time 01:39:13 Cumulative 203.0 hours Start 2021.01.14 @ 21:06:51 End 2021.01.15 @ 03:02:14 Sessions 1 Manual Loads 0 Difficulty Rogue Special Mode None Game No. 153 Rogue 153 Adventurer 0 Explorer 0 Win Type - Total 4 Types 4/0/0/0/0/0/0/0/0 Lore% 49 Gallery% 61 Achievement% 45 Wizard Run 0 Options --------- ASCII 1 Keyboard 1 Movement Arrows Keybinds 0 Fullscreen 1 Font 24/Proggy Map View 76x50 Tactical HUD 1 Map Filters NONE Filters NONE Steam 1 RUN: 101f0016-dba2-48d1-8cd5-ee9a86c22c1b